bitfinex/quotes_SOLUSD_20250401
["timestamp","ask_amount","ask_price","bid_price","bid_amount"]
[1743540469119,0.03,126.08,126.03,27.9342]
[1743540469435,24.5700695,126.08,126.03,27.9342]
[1743540470218,0.14216157,126.07,126.03,27.9342]
[1743540470411,0.14216157,126.07,126.02,7.9352]
[1743540470604,24.68223107,126.07,126.02,7.9352]
[1743540471118,0.14216157,126.05,126.01,7.9355]
[1743540471297,24.5400695,126.03,126.0,228.5]
[1743540471504,0.14216157,126.02,126.0,228.5]
[1743540472106,24.5400695,126.03,126.0,228.5]
[1743540472325,32.4746695,126.03,126.0,228.5]
[1743540472697,32.4746695,126.03,125.95,1.5309]
[1743540472698,24.5400695,126.02,125.95,1.5309]
[1743540472921,24.5400695,126.01,125.96,7.939]
[1743540473421,24.5400695,126.01,125.93,6.5025]
[1743540473422,24.5400695,125.99,125.93,6.5025]
[1743540473725,43.4740415,126.0,125.96,20.0]
[1743540474523,43.4740415,126.0,125.96,27.9387]
[1743540474696,51.4105415,126.0,125.96,27.9387]
[1743540474902,18.933972,126.0,125.96,7.9387]
[1743540475102,51.4106415,126.0,125.96,0.063]
[1743540475525,24.5400695,125.99,125.96,0.063]
[1743540475714,24.5400695,125.99,125.96,8.0019]
[1743540475919,24.5400695,125.99,125.96,20.063]
[1743540476107,24.5400695,125.99,125.96,0.063]
[1743540476599,32.4777695,125.98,125.96,0.063]
[1743540477706,43.4740415,125.97,125.96,0.063]
[1743540478630,51.4123415,125.97,125.96,0.063]
[1743540480114,53.0528415,125.97,125.96,0.063]
[1743540480728,60.0128415,125.97,125.96,0.063]
[1743540481225,146.8528415,125.97,125.89,0.0001]
[1743540481423,24.5400695,125.9,125.89,0.0001]
[1743540481639,43.4740415,125.9,125.89,0.0001]
[1743540483226,51.4168415,125.9,125.89,0.0001]
[1743540485130,43.4740415,125.9,125.89,0.0001]
[1743540485308,18.933972,125.9,125.89,0.0001]
[1743540486223,43.4740415,125.9,125.89,0.0001]
[1743540486430,51.4168415,125.9,125.89,0.0001]
[1743540487028,43.4740415,125.9,125.89,0.0001]
[1743540487634,80.7,125.91,125.89,0.0001]
[1743540488812,43.4740415,125.92,125.89,0.0001]
[1743540490327,24.5400695,125.93,125.89,0.0001]
[1743540490531,82.3049,125.97,125.89,20.0001]
[1743540490831,24.5400695,125.95,125.9,7.9428]
[1743540493129,32.4797695,125.95,125.9,7.9428]
[1743540493336,7.9397,125.95,125.9,7.9428]
[1743540493632,32.4797695,125.95,125.9,7.9428]
[1743540495823,24.5400695,125.95,125.9,7.9428]
[1743540497123,51.4133415,125.96,125.9,7.9428]
[1743540499032,18.933972,125.96,125.9,8.0058]
[1743540499251,105.2700695,125.97,125.93,20.0]
[1743540499445,80.73,125.97,125.93,20.0]
[1743540501020,80.73,125.97,125.94,7.9402]
[1743540501451,0.03,125.97,125.94,7.9402]
[1743540501743,32.5084695,125.97,125.91,14.2817]
[1743540501941,18.933972,125.96,125.91,14.2817]
[1743540503321,0.03,125.97,125.91,14.2817]
[1743540503714,0.03,125.97,125.92,6.96]
[1743540503939,0.03,125.97,125.95,20.0]
[1743540505639,0.03,125.97,125.96,7.939]
[1743540510547,0.03,125.97,125.96,20.0]
[1743540512650,0.03,125.97,125.96,27.939]
[1743540517549,24.5400695,126.04,126.0,20.0]
[1743540517856,24.68223107,126.05,126.01,7.9358]
[1743540518229,9.69536157,126.07,126.01,7.9358]
[1743540518454,24.5400695,126.06,126.01,7.9358]
[1743540518651,26.1609695,126.07,126.01,7.9358]
[1743540519165,34.0930695,126.07,126.01,7.9358]
[1743540520759,24.5400695,126.05,126.0,107.86]
[1743540520965,24.5400695,126.04,126.0,107.86]
[1743540521170,24.5400695,126.04,126.0,26.96]
[1743540521664,24.5400695,126.05,126.0,26.96]
[1743540522289,24.5400695,126.05,126.0,34.8964]
[1743540522468,43.5040415,126.06,126.0,34.8964]
[1743540522663,32.4733695,126.05,126.0,34.8964]
[1743540523059,24.5400695,126.04,126.0,26.96]
[1743540524477,24.5400695,126.04,126.01,20.0]
[1743540524681,24.5400695,126.02,125.98,80.9]
[1743540525066,24.5400695,126.02,125.97,7.9383]
[1743540526158,32.4756695,126.02,125.97,7.9383]
[1743540526779,7.9356,126.02,125.97,7.9383]
[1743540527880,24.5400695,126.04,125.97,7.9383]
[1743540528285,24.5400695,126.04,126.0,20.0]
[1743540529083,51.4073415,126.05,126.0,20.0]
[1743540530571,24.5400695,126.03,126.0,20.0]
[1743540531883,7.9352,126.02,126.0,20.0]
[1743540535692,7.9352,126.02,125.97,80.963]
[1743540535989,7.9352,126.02,125.99,20.0]
[1743540541994,18.933972,126.01,125.99,20.0]
[1743540542302,23.65733077,126.02,125.99,20.0]
[1743540543590,15.72213077,126.01,125.97,0.063]
[1743540545197,43.49543077,126.02,125.97,0.063]
[1743540546202,7.9652,126.02,125.97,0.063]
[1743540546381,0.03,126.02,125.97,0.063]
[1743540546582,0.03,126.02,125.99,20.0]
[1743540547578,15.72213077,126.01,125.99,20.0]
[1743540547880,15.72213077,126.01,125.97,0.063]
[1743540548214,7.9365,126.0,125.97,0.063]
[1743540548387,20.23364886,126.02,125.97,0.063]
[1743540548578,43.89107963,126.02,125.97,0.063]
[1743540548988,16.00645391,126.01,125.97,0.063]
[1743540549282,15.72213077,126.0,125.97,0.063]
[1743540549686,16.00645391,126.01,125.97,0.063]
[1743540550302,23.94275391,126.01,125.97,0.063]
[1743540551098,1.584,126.02,125.97,0.063]
[1743540551301,0.03,126.02,125.99,20.0]
[1743540551483,0.03,126.02,126.0,20.0]
[1743540552507,0.03,126.02,126.01,7.9358]
[1743540554286,0.03,126.02,126.0,27.9362]
[1743540556606,0.03,126.02,126.0,20.0]
[1743540556804,15.75213077,126.02,126.0,20.0]
[1743540557491,0.03,126.02,125.99,7.9367]
[1743540558807,0.03,126.02,125.98,27.9374]
[1743540558988,0.03,126.02,125.99,20.0]
[1743540559197,0.03,126.02,126.0,20.0]
[1743540561094,0.03,126.02,126.0,27.9363]
[1743540564120,0.03,126.02,126.0,20.0]
[1743540566118,7.9652,126.02,125.97,80.963]
[1743540566321,23.68733077,126.02,125.99,20.0]
[1743540568209,7.9365,126.0,125.97,0.063]
[1743540568406,23.65863077,126.0,125.97,0.063]
[1743540569325,18.963972,126.02,125.98,20.0]
[1743540569524,34.68610277,126.02,125.98,20.0]
[1743540570127,15.75213077,126.02,125.98,20.0]
[1743540570421,0.03,126.02,125.99,7.9371]
[1743540572198,0.03,126.02,125.99,27.7799]
[1743540574633,0.03,126.02,125.99,7.9371]
[1743540582523,18.963972,126.02,125.98,20.0]
[1743540582724,34.68610277,126.02,125.98,20.0]
[1743540584535,42.62160277,126.02,125.98,27.9377]
[1743540586935,28.0,126.0,125.98,20.0]
[1743540587937,35.9365,126.0,125.98,20.0]
[1743540588139,35.9365,126.0,125.97,0.063]
[1743540588921,53.31443077,126.0,125.97,0.063]
[1743540589125,15.72213077,125.99,125.97,0.063]
[1743540590137,23.65953077,125.99,125.97,0.063]
[1743540593257,18.933972,125.98,125.97,0.063]
[1743540593455,34.65610277,125.98,125.97,0.063]
[1743540595440,42.59380277,125.98,125.97,0.063]
[1743540599763,42.59380277,125.98,125.97,0.0001]
[1743540599948,42.59380277,125.98,125.96,0.063]
[1743540599949,49.21860277,125.98,125.96,0.0001]
[1743540600154,34.65610277,125.97,125.96,0.0001]
[1743540600538,36.19660277,125.97,125.96,0.0001]
[1743540601061,115.35610277,125.97,125.96,0.0001]
[1743540601862,123.29440277,125.97,125.96,0.0001]
[1743540602948,18.933972,125.96,125.9,0.063]
[1743540603146,15.72213077,125.92,125.9,0.063]
[1743540603556,15.72213077,125.93,125.9,0.063]
[1743540605574,15.72213077,125.92,125.9,0.063]
[1743540606355,34.65610277,125.93,125.9,0.063]
[1743540610481,42.59700277,125.93,125.9,0.063]
[1743540611984,26.874872,125.93,125.9,0.063]
[1743540612274,42.59700277,125.93,125.9,0.063]
[1743540612664,34.65610277,125.93,125.9,0.063]
[1743540613174,18.933972,125.93,125.9,0.063]
[1743540614176,87.66,125.96,125.9,0.063]
[1743540614177,34.5139412,125.96,125.9,0.063]
[1743540614391,34.5139412,125.96,125.9,1.6101]
[1743540614553,18.79181043,125.96,125.9,1.6101]
[1743540614873,15.72213077,125.99,125.93,7.9409]
[1743540615376,15.72213077,125.98,125.93,7.9409]
[1743540615574,18.933972,125.97,125.93,7.9409]
[1743540615765,18.963972,125.97,125.93,7.9409]
[1743540615962,16.03645391,125.97,125.93,7.9409]
[1743540616669,23.97525391,125.97,125.92,7.9412]
[1743540618583,23.97525391,125.97,125.91,95.193]
[1743540618985,23.97525391,125.97,125.91,14.293]
[1743540619690,23.66163077,125.96,125.91,6.3512]
[1743540619861,34.65610277,125.95,125.9,9.5526]
[1743540620962,18.933972,125.95,125.9,9.5526]
[1743540621463,0.28432314,125.95,125.9,9.5526]
[1743540621662,0.28432314,125.95,125.9,29.4096]
[1743540622084,15.72213077,125.96,125.9,29.4096]
[1743540622385,42.34047963,125.97,125.9,29.4096]
[1743540624285,23.66133077,125.96,125.9,29.4096]
[1743540624874,15.72213077,125.96,125.9,29.4096]
[1743540625074,42.34037963,125.97,125.9,29.4096]
[1743540625790,34.65610277,125.96,125.9,9.5526]
[1743540626384,42.59540277,125.96,125.9,9.5526]
[1743540627394,18.933972,125.96,125.9,9.5526]
[1743540627763,0.03,125.97,125.94,26.2712]
[1743540627969,28.0,126.0,125.94,114.1312]
[1743540628170,28.0,126.0,125.94,115.7209]
[1743540628370,28.0,126.0,125.95,27.7887]
[1743540631488,28.0,126.0,125.98,20.0]
[1743540632793,28.0,126.0,125.99,7.9371]
[1743540650078,5.19018782,126.0,125.99,7.9371]
[1743540650679,5.22018782,126.0,125.99,7.9371]
[1743540652289,5.22018782,126.0,125.99,88.8371]
[1743540652909,5.22018782,126.0,125.99,95.7771]
[1743540654287,1e-08,126.0,125.99,95.7771]
[1743540654487,0.03,126.05,125.99,141.99394886]
[1743540654716,0.03,126.05,126.02,20.0]
[1743540655002,0.03,126.05,126.03,6.94]
[1743540655584,0.03,126.06,126.03,87.84]
[1743540655788,0.03,126.1,126.07,20.0]
[1743540656121,0.03,126.1,126.08,7.9314]
[1743540657308,0.03,126.1,126.09,20.0]
[1743540658699,0.03,126.1,126.07,7.9321]
[1743540658917,0.03,126.1,126.09,20.0]
[1743540659216,0.03,126.15,126.13,7.9283]
[1743540660509,0.03,126.15,126.12,115.7687]
[1743540661390,0.03,126.15,126.12,107.84]
[1743540661592,0.03,126.15,126.12,115.7689]
[1743540662197,5.57274589,126.32,126.28,20.0]
[1743540662395,39.04097658,126.53,126.39,20.5]
[1743540662704,186.33302699,126.58,126.54,20.0]
[1743540662897,78.32847142,126.59,126.58,0.28432314]
[1743540663101,78.32847142,126.59,126.52,1.57978361]
[1743540663102,71.68501232,126.59,126.52,20.0]
[1743540663302,246.19971328,126.63,126.55,20.0]
[1743540663508,246.19971328,126.63,126.58,39.87719044]
[1743540663894,246.19971328,126.63,126.54,26.55204886]
[1743540663895,246.19971328,126.63,126.61,59.7238271]
[1743540664414,246.19971328,126.63,126.62,2.82690737]
[1743540664617,38.9259109,126.67,126.62,39.94857031]
[1743540665113,27.60302272,126.68,126.62,49.03349687]
[1743540665299,38.9259109,126.67,126.63,2.82690737]
[1743540665617,38.9259109,126.64,126.63,18.73619148]
[1743540665818,0.28432314,126.69,126.63,18.73619148]
[1743540666015,38.9259109,126.66,126.63,18.73619148]
[1743540666514,38.9259109,126.65,126.63,15.90928411]
[1743540667309,3.3227481,126.66,126.63,15.90928411]
[1743540667513,38.9259109,126.64,126.63,55.61911149]
[1743540667815,11.49749763,126.64,126.63,65.50559031]
[1743540668207,3.3227481,126.66,126.63,65.50559031]
[1743540668406,3.3227481,126.66,126.63,15.59383056]
[1743540668608,3.3027481,126.66,126.63,15.59383056]
[1743540669094,3.11515254,126.68,126.67,39.79892648]
[1743540669294,21.7648014,126.68,126.67,39.79892648]
[1743540669609,9.64,126.7,126.67,39.79892648]
[1743540669813,9.64,126.7,126.67,62.41122696]
[1743540670112,9.64,126.71,126.67,62.41122696]
[1743540670514,197.96826584,126.76,126.69,11.70672339]
[1743540670821,20.0,126.73,126.69,11.70672339]
[1743540671126,1.5568,126.77,126.7,11.70672339]
[1743540671719,18.933972,126.76,126.69,12.20672339]
[1743540672609,18.933972,126.76,126.71,11.70672339]
[1743540673701,8.17342314,126.76,126.71,11.70672339]
[1743540674115,8.17342314,126.76,126.69,0.5]
[1743540675024,8.20342314,126.76,126.68,12.20672339]
[1743540675399,8.20342314,126.76,126.68,0.5]
[1743540677523,8.20342314,126.76,126.66,0.5]
[1743540677723,18.64964886,126.73,126.66,0.5]
[1743540678909,18.64964886,126.73,126.65,0.5]
[1743540679099,18.64964886,126.73,126.66,0.5]
[1743540679418,59.21929431,126.77,126.66,0.5]
[1743540679802,0.28432314,126.76,126.67,0.5]
[1743540680312,27.89552314,126.76,126.67,0.5]
[1743540680498,27.89552314,126.76,126.66,0.5]
[1743540680703,27.89552314,126.76,126.68,0.5]
[1743540680936,36.90226659,126.78,126.68,0.5]
[1743540681303,18.64964886,126.77,126.69,0.5]
[1743540681706,18.64964886,126.77,126.69,81.4]
[1743540682615,26.53794886,126.77,126.69,80.9]
[1743540682810,0.28432314,126.76,126.69,80.9]
[1743540683741,85.70014886,126.77,126.69,80.9]
[1743540683742,0.28432314,126.73,126.69,80.9]
[1743540684031,0.28432314,126.73,126.65,81.4]
[1743540684827,7.8907,126.73,126.65,81.4]
[1743540685129,7.8907,126.73,126.66,0.5]
[1743540685723,7.8907,126.73,126.67,0.5]
[1743540685932,7.8907,126.73,126.66,0.5]
[1743540686112,30.30154346,126.77,126.66,0.5]
[1743540686303,30.30154346,126.77,126.66,80.9]
[1743540686507,20.0,126.75,126.66,80.9]
[1743540686711,9.58432314,126.74,126.66,80.9]
[1743540687128,7.8907,126.73,126.67,0.5]
[1743540687519,7.8907,126.73,126.67,81.4]
[1743540687722,7.8907,126.73,126.68,0.5]
[1743540688426,7.8907,126.73,126.68,81.4]
[1743540688829,27.89982314,126.74,126.68,81.4]
[1743540689024,18.64964886,126.76,126.68,81.4]
[1743540689620,18.64964886,126.76,126.68,80.9]
[1743540689823,18.64964886,126.77,126.68,80.9]
[1743540690022,59.1669,126.76,126.68,80.9]
[1743540690822,37.6849589,126.78,126.68,80.9]
[1743540691020,0.28432314,126.77,126.68,80.9]
[1743540691430,89.52463271,126.78,126.68,80.9]
[1743540692017,18.64964886,126.77,126.68,80.9]
[1743540692537,39.4446,126.76,126.68,80.9]
[1743540693035,67.0558,126.76,126.68,80.9]
[1743540693242,18.64964886,126.75,126.68,80.9]
[1743540693441,0.28432314,126.74,126.68,80.9]
[1743540694630,0.28432314,126.68,126.63,217.8]
[1743540694833,240.91389813,126.64,126.6,11.70672339]
[1743540695055,7.8988,126.6,126.58,23.41344679]
[1743540695254,7.8988,126.6,126.57,104.31344679]
[1743540695255,80.30463271,126.59,126.57,104.31344679]
[1743540695462,80.30463271,126.59,126.57,23.41344679]
[1743540695950,80.30463271,126.59,126.57,4.679e-05]
[1743540696819,80.30463271,126.59,126.55,80.9]
[1743540697026,27.6504,126.58,126.55,80.9]
[1743540697224,80.30463271,126.56,126.55,80.9]
[1743540697443,80.30463271,126.58,126.53,0.5]
[1743540697646,80.30463271,126.58,126.51,80.9]
[1743540697846,80.30463271,126.58,126.51,81.4]
[1743540698325,100.05493271,126.58,126.51,81.4]
[1743540698727,72.60096009,126.58,126.51,80.9]
[1743540699141,27.6547,126.56,126.51,80.9]
[1743540699339,67.1616,126.56,126.51,81.4]
[1743540699533,67.1616,126.56,126.51,80.9]
[1743540701046,106.6685,126.56,126.51,80.9]
[1743540705963,106.6685,126.56,126.52,7.303e-05]
[1743540707142,106.6685,126.56,126.51,40.58997303]
[1743540709736,106.6685,126.56,126.52,7.40044293]
[1743540709952,106.6685,126.56,126.52,4.293e-05]
[1743540710160,106.6685,126.56,126.52,1.596e-05]
[1743540710829,265.5762673,126.55,126.52,42.45640136]
[1743540711450,265.5762673,126.55,126.52,80.9]
[1743540711763,15.93457603,126.54,126.52,41.0351]
[1743540711932,15.93457603,126.54,126.49,94.71041768]
[1743540712249,15.93457603,126.53,126.52,80.9]
[1743540712454,163.41680874,126.53,126.48,0.5]
[1743540712647,163.41680874,126.53,126.44,18.64964886]
[1743540712955,163.41680874,126.53,126.43,286.27910751]
[1743540712956,15.93457603,126.52,126.43,286.27910751]
[1743540713748,15.93457603,126.52,126.44,2.85061226]
[1743540714649,83.12277603,126.51,126.45,2.85061226]
[1743540714871,43.60027603,126.51,126.45,83.75061226]
[1743540715236,43.60027603,126.51,126.45,80.9]
[1743540715740,15.93457603,126.5,126.45,80.9]
[1743540716532,13.21722534,126.49,126.45,80.9]
[1743540717865,7.9057,126.49,126.45,80.9]
[1743540718755,39.5167,126.53,126.45,80.9]
[1743540719464,0.28432314,126.52,126.45,80.9]
[1743540720354,18.933972,126.52,126.45,80.9]
[1743540720663,0.28432314,126.5,126.43,308.54]
[1743540722662,27.6701,126.49,126.43,308.54]
[1743540722861,67.1989,126.49,126.43,308.54]
[1743540723365,7.9057,126.49,126.43,308.603]
[1743540723566,7.9054,126.5,126.43,316.5123]
[1743540723866,107.45239431,126.54,126.43,316.5123]
[1743540723867,261.83814638,126.55,126.46,20.0]
[1743540724065,261.83814638,126.55,126.47,12.4495]
[1743540724290,261.83814638,126.55,126.48,8.76]
[1743540724872,261.83814638,126.55,126.49,7.9057]
[1743540725074,261.83814638,126.55,126.49,88.8057]
[1743540725576,261.83814638,126.55,126.49,108.5701]
[1743540725756,191.21491247,126.55,126.5,18.64964886]
[1743540726859,191.21491247,126.55,126.51,7.9045]
[1743540727062,191.21491247,126.55,126.51,80.9]
[1743540727784,7.902,126.55,126.51,80.9]
[1743540728470,7.9314,126.56,126.51,80.9]
[1743540729874,0.03,126.56,126.51,80.9]
[1743540732482,0.28432314,126.55,126.47,89.62]
[1743540732669,0.28432314,126.55,126.47,80.9]
[1743540734085,0.28432314,126.52,126.47,80.9]
[1743540735893,67.1722,126.54,126.47,80.9]
[1743540736073,27.6591,126.54,126.47,80.9]
[1743540736260,19.7565,126.54,126.47,80.9]
[1743540740174,19.7565,126.54,126.48,2.89514678]
[1743540740999,19.7565,126.54,126.49,2.89514678]
[1743540741899,19.7565,126.54,126.47,80.9]
[1743540742586,19.7565,126.54,126.48,2.89841006]
[1743540742989,18.933972,126.53,126.48,2.89841006]
[1743540743197,18.933972,126.53,126.47,80.9]
[1743540744907,7.9038,126.52,126.47,80.9]
[1743540745277,0.28432314,126.51,126.47,80.9]
[1743540747404,7.9051,126.5,126.47,80.9]
[1743540748000,7.9051,126.5,126.43,93.0635]
[1743540748197,7.9051,126.5,126.43,100.9726]
[1743540750806,27.6679,126.5,126.43,93.0635]
[1743540751024,27.6679,126.5,126.43,100.9728]
[1743540751425,27.6679,126.5,126.43,93.0635]
[1743540751612,18.933972,126.49,126.43,0.063]
[1743540752320,67.1935,126.5,126.43,80.963]
[1743540752321,27.6679,126.5,126.43,80.963]
[1743540752611,19.7628,126.5,126.43,80.963]
[1743540752820,19.7628,126.5,126.43,88.8724]
[1743540753319,7.9045,126.51,126.43,88.8724]
[1743540753695,7.9045,126.51,126.44,8.34]
[1743540754091,7.9045,126.51,126.44,89.24]
[1743540754614,0.03,126.53,126.45,7.9082]
[1743540754922,0.03,126.53,126.45,91.70175165]
[1743540755814,0.03,126.53,126.46,2.89355165]
[1743540757420,18.963972,126.53,126.46,83.79355165]
[1743540757817,0.28432314,126.5,126.46,83.79355165]
[1743540757996,0.28432314,126.5,126.43,0.063]
[1743540758320,0.28432314,126.48,126.43,0.063]
[1743540760327,27.6745,126.47,126.43,0.063]
[1743540760829,18.933972,126.46,126.38,1.969]
[1743540761602,67.2201,126.45,126.38,1.969]
[1743540763125,27.6788,126.45,126.38,1.969]
[1743540764911,0.28432314,126.44,126.38,1.969]
[1743540765934,27.6832,126.43,126.38,1.969]
[1743540768309,7.9095,126.43,126.38,1.969]
[1743540770437,7.9395,126.43,126.38,1.969]
[1743540770632,7.9395,126.43,126.38,9.8814]
[1743540771146,0.03,126.43,126.38,9.8814]
[1743540771438,0.03,126.43,126.38,90.7814]
[1743540780038,21.2517154,126.49,126.38,90.7814]
[1743540781037,19.7675,126.47,126.38,90.7814]
[1743540782131,0.28432314,126.46,126.38,90.7814]
[1743540783750,7.9082,126.45,126.38,90.7814]
[1743540784124,27.6788,126.45,126.38,90.7814]
[1743540784725,7.9082,126.45,126.38,90.7814]
[1743540785744,27.6788,126.45,126.38,82.869]
[1743540786334,0.28432314,126.44,126.38,82.869]
[1743540787928,7.9095,126.43,126.38,82.869]
[1743540788128,7.9095,126.43,126.38,1.969]
[1743540788444,27.6832,126.43,126.38,1.969]
[1743540798147,7.9095,126.43,126.38,9.8815]
[1743540798441,7.9095,126.43,126.38,1.969]
[1743540799054,7.9095,126.43,126.38,9.8816]
[1743540801362,27.6792,126.45,126.38,1.969]
[1743540801541,0.28432314,126.44,126.38,1.969]
[1743540803762,27.6832,126.43,126.38,1.969]
[1743540804863,0.28432314,126.42,126.38,1.969]
[1743540805761,7.9107,126.41,126.38,1.969]
[1743540806761,0.28432314,126.42,126.38,9.8815]
[1743540806762,7.9104,126.42,126.38,9.8815]
[1743540806948,7.9104,126.42,126.38,1.969]
[1743540807361,7.9104,126.42,126.38,9.8815]
[1743540807862,8.19312314,126.44,126.38,1.969]
[1743540808245,7.9088,126.44,126.38,90.7814]
[1743540809565,7.9088,126.44,126.39,2.90305979]
[1743540809965,27.679,126.45,126.39,2.90305979]
[1743540810165,27.679,126.45,126.38,90.7815]
[1743540811564,27.679,126.45,126.39,2.90279806]
[1743540811763,7.9063,126.48,126.41,12.085]
[1743540811964,7.9063,126.48,126.42,7.9101]
[1743540812174,7.936,126.49,126.42,12.4674]
[1743540813171,7.936,126.49,126.43,2.89852567]
[1743540813671,7.936,126.49,126.42,93.3674]
[1743540814172,0.03,126.49,126.42,93.3674]
[1743540814373,0.03,126.49,126.43,18.64964886]
[1743540814959,0.03,126.49,126.44,2.89430595]
[1743540815156,0.03,126.49,126.44,83.79430595]
[1743540815667,0.03,126.49,126.44,80.9]
[1743540816267,0.03,126.49,126.45,7.9082]
[1743540817072,0.03,126.49,126.44,88.8085]
[1743540817981,0.03,126.49,126.44,80.9]
[1743540822575,0.28432314,126.48,126.42,80.9]
[1743540824583,27.6745,126.47,126.42,80.9]
[1743540827379,27.6745,126.47,126.39,100.8252]
[1743540827982,27.6745,126.47,126.39,92.9135]
[1743540828674,0.28432314,126.46,126.39,100.8255]
[1743540828861,0.28432314,126.46,126.39,92.9135]
[1743540829754,0.28432314,126.46,126.39,100.8254]
[1743540830879,7.9082,126.45,126.39,100.8254]
[1743540831579,7.9082,126.45,126.39,92.9135]
[1743540833382,7.9082,126.45,126.39,100.8254]
[1743540836170,7.9082,126.45,126.4,18.64964886]
[1743540837087,8.19132314,126.47,126.4,18.64964886]
[1743540837478,8.19132314,126.47,126.41,7.54]
[1743540837676,27.95882314,126.47,126.41,7.54]
[1743540838888,27.95882314,126.47,126.41,88.44]
[1743540845293,27.95882314,126.47,126.41,96.3507]
[1743540845498,7.9367,126.48,126.42,18.64964886]
[1743540845688,7.9367,126.48,126.42,99.54964886]
[1743540846084,0.03,126.48,126.44,18.64964886]
[1743540846695,0.03,126.48,126.44,99.54964886]
[1743540847199,0.03,126.48,126.44,107.45794886]
[1743540851375,0.03,126.48,126.46,18.64964886]
[1743540851596,0.03,126.48,126.47,26.08964886]
[1743540852281,0.03,126.48,126.47,33.99664886]
[1743540852584,0.03,126.48,126.47,36.8839864]
[1743540853698,0.03,126.48,126.47,117.7839864]
[1743540854096,0.03,126.48,126.47,124.15928088]
[1743540854405,0.03,126.48,126.47,117.7839864]
[1743540854586,0.03,126.53,126.5,20.0]
[1743540854788,0.03,126.53,126.52,31.83934886]
[1743540855091,0.03,126.53,126.52,272.240872]
[1743540855701,0.03,126.53,126.52,275.12820954]
[1743540855912,0.03,126.53,126.52,274.9238864]
[1743540856202,0.03,126.53,126.52,272.17871043]
[1743540856591,0.03,126.53,126.52,280.08251043]
[1743540856992,0.03,126.53,126.52,280.224672]
[1743540857294,0.03,126.53,126.52,279.94034886]
[1743540857884,0.03,126.53,126.52,282.80844915]
[1743540859204,0.03,126.53,126.52,279.94034886]
[1743540859799,0.03,126.53,126.52,253.4669]
[1743540860002,0.03,126.53,126.52,316.76]
[1743540860589,0.03,126.53,126.52,88.96]
[1743540861513,0.03,126.53,126.52,8.06]
[1743540861997,0.03,126.53,126.5,80.9]
[1743540863702,0.03,126.53,126.48,80.9]
[1743540863907,0.28432314,126.48,126.4,0.063]
[1743540864090,20.0,126.49,126.4,0.063]
[1743540864290,0.28432314,126.48,126.4,0.063]
[1743540866409,27.6745,126.47,126.4,0.063]
[1743540867106,27.6745,126.47,126.4,18.71264886]
[1743540868011,27.6745,126.47,126.4,0.063]
[1743540868192,27.6745,126.47,126.4,80.963]
[1743540868595,19.7675,126.47,126.4,80.963]
[1743540869620,0.28432314,126.46,126.4,80.963]
[1743540870517,27.6788,126.45,126.4,80.963]
[1743540872346,7.9082,126.45,126.4,80.963]
[1743540872698,7.9076,126.46,126.4,80.963]
[1743540874418,7.9076,126.46,126.41,18.64964886]
[1743540874863,7.9063,126.48,126.41,18.64964886]
[1743540875002,7.9063,126.48,126.41,99.54964886]
[1743540875321,0.28432314,126.47,126.41,80.9]
[1743540876924,27.6766,126.46,126.41,80.9]
[1743540877595,67.2147,126.46,126.41,80.9]
[1743540877936,0.28432314,126.45,126.41,80.9]
[1743540878234,0.28432314,126.45,126.4,0.063]
[1743540879729,0.28432314,126.43,126.4,0.063]
[1743540881026,7.9101,126.42,126.4,0.063]